Cogmind - Beta 15 @@@ ROGUE MODE // 2025.07.07 @ 22:43:53 Player: Skysub Result: Destroyed by S-10 Pest with Light Assault Rifle Performance ------------- Evolutions (0) 0 Regions Visited (2) 400 Robots Destroyed (24) 120 Value Destroyed (480) 480 Prototype IDs (0) 0 Alien Tech Used (0) 0 Bonus (0) 0 TOTAL SCORE: 1000 Bonus ------- None Cogmind --------- Core Integrity 0/250 Matter 90/300 Energy 53/100 System Corruption 3% Temperature Cool (0) Movement Rolling (100) Location -10/Subcaves Parts ------- > --- POWER (1) -------- (None) > --- PROPULSION (2) --- Compact Wheel > --- UTILITY (2) ------ Medium Storage Unit > --- WEAPON (2) ------- Subdweller Laser > --- INVENTORY (10) --- Light Ion Engine Subdweller Power Source Small Storage Unit Mining Laser Peak State ------------ > --- POWER ------------ Light Ion Engine > --- PROPULSION ------- Light Treads Light Treads > --- UTILITY ---------- Small Storage Unit Structural Scanner > --- WEAPON ----------- Assault Rifle Grenade Launcher > --- INVENTORY -------- Light Ion Engine Light Treads Compact Wheel Light Assault Rifle Mining Laser [Rating: 7] Favorites ----------- Power Light Ion Engine Engine Light Ion Engine Propulsion Light Treads Treads Light Treads Wheel Compact Wheel Utility Medium Storage Unit Device Structural Scanner Storage Medium Storage Unit Weapon Assault Rifle Energy Gun Subdweller Laser Ballistic Gun Assault Rifle Launcher Grenade Launcher Build | -11 -10 -10 ------- Run | Yrd Mat Sub Slots Evolved . | . . . Power . | . . . Propulsion . | . . . Utility . | . . . Weapon . | . . . Parts Attached 12 | 6 3 3 Power 1 | 1 . . Engine 1 | 1 . . Core . | . . . Reactor . | . . . Propulsion 4 | 2 . 2 Treads 3 | 2 . 1 Leg . | . . . Wheel 1 | . . 1 Hover . | . . . Flight . | . . . Utility 3 | 1 2 . Device 1 | . 1 . Storage 2 | 1 1 . Processor . | . . . Hackware . | . . . Protection . | . . . Artifact . | . . . Weapon 4 | 2 1 1 Energy Gun 1 | . . 1 Energy Cannon . | . . . Ballistic Gun 2 | 2 . . Ballistic Cannon . | . . . Launcher 1 | . 1 . Special Weapon . | . . . Impact Weapon . | . . . Slashing Weapon . | . . . Piercing Weapon . | . . . Special Melee Weapon . | . . . Unidentified Prototypes . | . . . Parts Lost 8 | . . 8 Power 1 | . . 1 Propulsion 3 | . . 3 Utility 1 | . . 1 Weapon 3 | . . 3 Highest Loss Streak 5 | . . 5 To Critical Strikes 2 | . . 2 Average Backups 4 | 1 4 5 Power 1 | . 1 1 Propulsion 1 | . 1 1 Utility . | . . 1 Weapon 1 | . 1 1 Tool/Special . | . . . Unused Backups 3 | . . 3 Power 2 | . . 2 Propulsion . | . . . Utility . | . . . Weapon 1 | . . 1 Tool/Special . | . . . Average Slot Usage (%) 82 | . 90 70 Engine 9 | . 14 3 Treads 25 | . 28 21 Device 4 | . 5 3 Storage 14 | . 14 14 Energy Gun 3 | . . 9 Ballistic Gun 16 | . 18 14 Launcher 6 | . 9 2 Peak Build Rating 7 | 6 7 7 Average Rating 5 | 4 6 5 On Entrance 4 | . 6 7 Naked Turns . | . . . Heaviest Build 19 | 11 19 19 Greatest Support 40 | 40 40 40 Greatest Overweight (x) 3 | 3 . . Average Overweight (x) . | . . . Largest Inventory Capacity 10 | 8 10 10 Average Capacity 9 | 7 8 10 Most Carried 6 | 3 6 6 Average Carried 4 | 2 4 4 Final Capacity 10 | 8 10 10 Final Carried 6 | 3 6 4 Class Distribution -------------------- 100% | Mutant Dominant Class ---------------- Mutant | -10/Materials Mutant | -10/Subcaves Resources | -11 -10 -10 ----------- Run | Yrd Mat Sub Matter Collected 460 | 269 64 127 Remotely . | . . . Salvage Created 538 | 122 258 158 Parts 46 | 15 19 12 Haulers Intercepted 1 | . 1 . Recyclers Shooed 1 | 1 . . Parts Field Recycled . | . . . Retrieved Matter . | . . . Parts Self-Destructed 9 | . . 9 Prevented . | . . . Kills | -11 -10 -10 ------- Run | Yrd Mat Sub Combat Hostiles Destroyed 14 | . 7 7 Guns 7 | . . 7 AOE 7 | . 7 . Classes Destroyed 9 | 2 5 2 Worker 3 | . 3 . Builder 1 | . 1 . Tunneler 3 | 3 . . Hauler 1 | . 1 . Recycler 1 | 1 . . Watcher 1 | . 1 . Swarmer 5 | . . 5 Grunt 7 | . 7 . Subdweller 2 | . . 2 Best Kill Streak 4 | 4 4 3 Combat Bots Only 3 | . 3 3 Max Kills in Single Turn 3 | 1 3 1 Gunslinging . | . . . Exploded 2 | . 2 . Melee . | . . . Uniques/NPCs Destroyed . | . . . Combat | -11 -10 -10 -------- Run | Yrd Mat Sub Hostile Shots Fired 90 | . 12 78 Missed 25 | . 6 19 Hits 65 | . 6 59 Projectile 65 | . 6 59 Critical Strikes 7 | . 1 6 Damage Taken 1030 | . 88 942 Core 258 | . 48 210 Absorbed by Shields . | . . . Core Remaining (%) 100 | 100 . . Volleys Fired 57 | 8 12 37 Largest 2 | 2 2 2 Hottest 80 | 40 50 80 Shots Fired 103 | 16 21 66 Gun 87 | 16 11 60 Cannon . | . . . Launcher 16 | . 10 6 Special . | . . . Kinetic 75 | 16 11 48 Thermal 12 | . . 12 Explosive 16 | . 10 6 Electromagnetic . | . . . Robot Hit Streak 23 | 4 7 23 Robot Miss Streak 4 | 2 1 4 Penetration Max . | . . . Secondary Targets 1 | . . 1 Max Gunslinging Chain 1 | . . 1 Shots Hit Robots 70 | 9 10 51 Core Hits 39 | 5 22 12 Critical Kills . | . . . Critical Parts Destroyed . | . . . Critical Strikes . | . . . Melee Attacks . | . . . Impact . | . . . Slashing . | . . . Piercing . | . . . Sneak Attacks . | . . . Combat Hostiles . | . . . Follow-up Attacks . | . . . Damage Inflicted 1557 | 104 756 697 Guns 700 | 104 67 529 Cannons . | . . . Explosions 850 | . 682 168 Melee . | . . . Ramming 7 | . 7 . Kinetic 563 | 104 67 392 Thermal 137 | . . 137 Explosive 850 | . 682 168 Electromagnetic . | . . . Impact . | . . . Slashing . | . . . Piercing . | . . . Highest Corruption 3 | . 3 3 Average Corruption 2 | . 2 3 Corruption Purged . | . . . Corruption Blocked . | . . . Effects 15 | . 8 7 Message Errors 4 | . 2 2 Matter Fused 6 | . 4 2 Heat Flow Errors 2 | . 1 1 Data Loss (minor) 1 | . 1 . Data Loss (major) 2 | . . 2 Overload Shots . | . . . Overflow Damage 17 | . 17 . Projectiles . | . . . Explosions 17 | . 17 . Melee . | . . . Knockbacks . | . . . Impact . | . . . Kinetic . | . . . Secondary . | . . . Self-Inflicted Damage 40 | . . 40 Shots 1 | . . 1 Rammed 2 | . 2 . Targets Rammed 2 | . 2 . Kicked . | . . . Crushed . | . . . Highest Temperature 275 | . 216 275 Average Temperature 90 | . 67 120 Received Heat Transfer 572 | . 69 503 Siege Activations . | . . . Martial Activations . | . . . Shielding Activations . | . . . Robots Disrupted . | . . . Combat Hostiles . | . . . Robots Corrupted . | . . . Combat Hostiles . | . . . Parts Fried . | . . . Impact Corruptions . | . . . Robots Melted . | . . . Combat Hostiles . | . . . Parts Melted 3 | . . 3 Heat Transferred 175 | . . 175 Parts Sabotaged . | . . . Parts Stolen . | . . . Parts Stripped . | . . . Power Chain Reactions . | . . . Alert | -11 -10 -10 ------- Run | Yrd Mat Sub Maximum Alert Level . | . . . Low Security (%) 100 | 100 100 . Level 1 . | . . . Level 2 . | . . . Level 3 . | . . . Level 4 . | . . . Level 5 . | . . . High Security . | . . . Max Security . | . . . Peak Influence 151 | 15 151 . Initial . | . . . Average 54 | 2 63 . Influence Increases 473 | 20 298 155 Destroy 0b10 Robot/C 240 | . 140 100 Destroy 0b10 Robot/NC 50 | 20 30 . Destroy Leader 44 | . 34 10 Select Force Hacks 30 | . 30 . Disable Machine 30 | . 30 . Destroy Structure 34 | . 34 . Lose Combat Pursuer 45 | . . 45 Influence Decreases 406 | 20 210 176 Entered New Map 43 | . . 43 Time Decay 338 | 20 210 108 Lost Part 25 | . . 25 Squads Dispatched 3 | . 3 . Investigation 2 | . 2 . Extermination . | . . . Reinforcement 1 | . 1 . Assault . | . . . Garrison . | . . . Intercept . | . . . Searches Triggered . | . . . Construction Impeded . | . . . Haulers Reinforced . | . . . Active Scanning Responses . | . . . Cargo Convoy Interrupts . | . . . Stealth | -11 -10 -10 --------- Run | Yrd Mat Sub Distress Signals 1 | . 1 . Communications Jammed . | . . . Distress Signals . | . . . Times Spotted 27 | . 17 10 Peak Tracking Total 6 | . 4 6 Tactical Retreats 1 | . . 1 Traps | -11 -10 -10 ------- Run | Yrd Mat Sub Traps Triggered 4 | . 4 . Indirectly . | . . . Trap Hack Attempts . | . . . Triggered . | . . . Disarmed . | . . . Reprogrammed . | . . . Reused . | . . . Traps Extracted . | . . . Installed . | . . . Triggered . | . . . Machines | -11 -10 -10 ---------- Run | Yrd Mat Sub Machines Disabled 2 | . 2 . Max in Single Turn 1 | . 1 . Machines Repaired . | . . . Machines Dismantled . | . . . Machines Sabotaged . | . . . Overloaded Fab Kills . | . . . Hacking | -11 -10 -10 --------- Run | Yrd Mat Sub Machines Accessed 2 | . 2 . Terminals 1 | . 1 . Fabricators . | . . . Repair Stations . | . . . Recycling Units 1 | . 1 . Scanalyzers . | . . . Garrison Access . | . . . Total Hacks 4 | . 4 . Successful 2 | . 2 . Failed 2 | . 2 . Catastrophic . | . . . Database Lockouts . | . . . Manual 3 | . 3 . Terminals 2 | . 2 . Fabricators . | . . . Repair Stations . | . . . Recycling Units 2 | . 2 . Scanalyzers . | . . . Garrison Access . | . . . Terminal Hacks . | . . . Fabricator Hacks . | . . . Repair Station Hacks . | . . . Recycling Unit Hacks 1 | . 1 . Report Inventory 1 | . 1 . Scanalyzer . | . . . Garrison Access Hacks . | . . . Unauthorized Hacks 1 | . 1 . Terminals . | . . . Fabricators . | . . . Repair Stations . | . . . Recycling Units 1 | . 1 . Tunnel 1 | . 1 . Scanalyzers . | . . . Garrison Access . | . . . Data Cores Recovered . | . . . Used . | . . . Hacking Detections 1 | . 1 . Full Trace Events . | . . . Feedback Events . | . . . Feedback Blocked . | . . . Robot Schematics Acquired . | . . . Robots Built . | . . . Authchips . | . . . Time . | . . . Total Robot Build Rating . | . . . Part Schematics Acquired . | . . . Parts Built . | . . . Authchips . | . . . Time . | . . . Total Part Build Rating . | . . . Parts Repaired . | . . . Time . | . . . Parts Recycled . | . . . Recycled Matter . | . . . Retrieved Matter . | . . . Retrieved Components . | . . . Parts Scanalyzed . | . . . Part Schematics Acquired . | . . . Parts Damaged . | . . . Bothacking | -11 -10 -10 ------------ Run | Yrd Mat Sub Used RIF Installer . | . . . Robots Hacked . | . . . Non-combat . | . . . Combat . | . . . Robot Hacks Applied . | . . . Relay Couplers Released . | . . . Fabnet Peak Effective % . | . . . Robots Rewired . | . . . Allies Hacked . | . . . Hacks Repelled . | . . . Allies | -11 -10 -10 -------- Run | Yrd Mat Sub Total Allies . | . . . Largest Group . | . . . Highest-Rated Group . | . . . Highest-Rated Ally . | . . . Total Orders . | . . . Ally Attacks . | . . . Total Damage . | . . . Kills . | . . . Allies Corrupted . | . . . Allies Melted . | . . . Intel | -11 -10 -10 ------- Run | Yrd Mat Sub Active Infowar (turns) 356 | . 253 103 Structural 356 | . 253 103 Robot Analysis Total . | . . . Derelict Logs Recovered 1 | . . 1 Drone Launches . | . . . Drone Recoveries . | . . . Exploration | -11 -10 -10 ------------- Run | Yrd Mat Sub Turns Passed 1233 | 119 686 428 Spaces Moved 659 | 55 403 201 Core 11 | 11 . . Treads 647 | 44 403 200 Legs . | . . . Wheels 1 | . . 1 Hover . | . . . Flight . | . . . Fastest Speed 50 | 50 160 100 Average Speed 159 | 156 160 159 Slowest Speed 200 | 200 160 160 Overloaded Moves . | . . . Propulsion Burnouts . | . . . Robots Hopped . | . . . Potential Cave-ins . | . . . Cave-ins Triggered . | . . . Exploration Rate (%) 36 | 5 86 17 Regions Visited 2 Branch Regions 1 Pre-discovered Areas 1 | . 1 . Known Exits Taken . | . . . Unknown Exits Taken 2 | 1 1 . Scrap Searched . | . . . Spaces Dug 7 | . 7 . Terrain Destroyed 56 | . 35 21 Melee . | . . . Projectile . | . . . AOE 56 | . 35 21 Terrain Rammed . | . . . Walls Destroyed . | . . . Machines Disabled . | . . . Actions | -11 -10 -10 --------- Run | Yrd Mat Sub Total 736 | 71 421 244 Wait 1 | . . 1 Move 657 | 54 402 201 Hop . | . . . Pick Up 6 | 3 2 1 Fast Attach 8 | 6 1 1 Attach 3 | . . 3 Detach . | . . . Swap 2 | . 2 . Drop . | . . . Fire 57 | 8 12 37 Melee . | . . . Ram . | . . . Kick . | . . . Crush 2 | . 2 . Escape Stasis . | . . . Rewire . | . . . Trap . | . . . Miscellaneous . | . . . Route ------- -11/Scrapyard -10/Materials (discovered 5 exits: [*Mat x3] / [*Min] / [*Sub]) -10/Subcaves History --------- Turn | Location | Event 19 | -11/Scrapyard | Discovered new exit (range 15) 120 | -11/Scrapyard | Entered Materials 150 | -10/Materials | Discovered new exit (range 16) 278 | -10/Materials | Discovered new exit (range 16) 311 | -10/Materials | Build established: Mutant 365 | -10/Materials | Discovered new exit (range 16) 592 | -10/Materials | Discovered new exit (range 11) 797 | -10/Materials | Discovered new exit (range 7) 806 | -10/Materials | Entered Subcaves 815 | -10/Subcaves | Shifting Twisted Machinery released Flamer 818 | -10/Subcaves | Learned Materials terminal intel 831 | -10/Subcaves | Shifting Twisted Machinery released Piercing Trap 866 | -10/Subcaves | Ambushed by angry Subdweller bent on revenge 884 | -10/Subcaves | Core integrity fell below 50% 940 | -10/Subcaves | Lost 5 parts (1p1n1u2w) 1226 | -10/Subcaves | Core integrity fell below 20% 1234 | -10/Subcaves | Destroyed by S-10 Pest with Light Assault Rifle Last Messages --------------- 01067_ Subatomizers dissect the Lgt. Ion Engine. 01068_ Lgt. Assault Rifle fries itself beyond repair. 01068_ Acquired 11 matter. 01070_ Lgt. Ion Engine fries itself beyond repair. 01070_ Acquired 17 matter. 01071_ Flight Unit fries itself beyond repair. 01072_ Acquired 12 matter. 01075_ 2UCQRW#UFX|MSDQCC6QF#Z,9D R> 01082_ Subatomizers dissect the Lgt. Ion Engine. 01083_ Lgt. Ion Engine fries itself beyond repair. 01154_ System corrupted: Heat flow error (+133). 01213_ System corrupted: Matter fused (-7). 01217_ Lgt. Treads destroyed. 01222_ S-10 Pest destroyed. 01225_ Destroyed Flight Unit. 01228_ Critical hit (Destroy). 01228_ Assault Rifle destroyed. 01229_ Flight Unit fries itself beyond repair. 01230_ S-10 Pest destroyed. 01233_ Subatomizers dissect the Flight Unit. Map ----- +----------------------------------------------------+ | ### ######????????????????????????????????## | | ## #???????????????????????????????? "" | | #??????????????????#####?#######? "" | | ##????????????????## ### ## #? " # | | ## #????????????????# "##?# # | | ## #????????????????# " #### "# | | ##???###???????#### ### " # | | ## #?#### #???????# #### "" " | | # ##?# #???????# ######## " | | ## #??## ##???????# ##?##### " | | ### # #???# ##???#### ### ## "" | | ######## #???# #??## # "" | | # ##??## ###### #??# "" | | ##?## ## # #??# "" | | #?# #??# ## ## ### "" | | ##?## #??# ######## ##?##"" | | #??# ##### ## #### ##??????#####???### | | ### ##???##### ##??????????????????# | | ""## ##??# #???????????????????? | | " " ##?# ## #???????????????????? | | " """ ###?# ### ##???????????????????? | | # ####?# ## ##???????????????????? | | # ##?## ## ###?????????????????? | | # # ## ## ##????????????????? | | # # # ## #????????????????? | | # # %@ #????????????????? | | ## ## s### ##???????????????? | | ## ####### s ##?# #???????????????? | | " ######?????#=% ##??## #???????????????? | | ## ###??????# ?????## #???????????????? | | ## # ????? ??????# #???????????????? | | # ?? ??????## ##???????????????? | | # % ???????###????????????????? | | ### # # #### ##??????????????????????????? | | ##########??### ????????????????????????????? | | ###?????????? ????????????????????????????? | | ###???????? ?????????????????????????????? | | ###???????? ?????????????????????????????? | | ##????????????????????????????????????????? | | ????????????????????????????????????????? | | ????????????????????????????????????????? | | ???????????????????????????????????????? | | ???? ?????????????????????????????????????????? | | ?????????????????????????????????????????????????? | | ?????????????????????????????????????????????????? | | ?????????????????????????????????????????????????? | | ?????????????????????????????????????????????????? | | ?????????????????????????????????????????????????? | | ?????????????????????????????????????????????????? | | ????????????????????????????????????????????????? | +----------------------------------------------------+ Best States ------------- Heat Dissipation 25 Energy Generation 10 Energy Capacity 125 Matter Stores 277 Matter Capacity 300 Sight Range 16 Terrain Scan Density 10 Evasion (%) 40 Recoil Reduction 2 Item Schematics ----------------- None Robot Schematics ------------------ None Fabricated ------------ Nothing Repaired ---------- Nothing Alien Tech Used ----------------- None Achievements -------------- None Challenges ------------ None Game ------ Seed MultireflexLaserBox Manual? 0 Play Time 00:07:15 Cumulative 145.8 hours Start 2025.07.07 @ 22:38:31 End 2025.07.07 @ 22:43:53 Sessions 1 Manual Loads 0 Difficulty Rogue Special Mode None Game No. 158 Rogue 158 Adventurer 0 Explorer 0 Win Type - Total 3 Types 1/0/0/1/0/0/0/0/0/1 Lore% 64 Gallery% 60 Achievement% 53 Wizard Run 0 Options --------- Layout 1 ASCII 0 Keyboard 1 Movement Numpad Keybinds 0 Fullscreen 1 Font 32/SmallcapsGlow Map View 77x35 Zoom Use 0% Tactical HUD 1 Map Filters NONE Filters NONE Steam 1 RUN: 9a01c26e-eeb5-4896-8cda-87e17b014e88